{"text_format":"1","workbook":"xlsx","n_sheets":13,"sheets":["1. Forside","2. Samlet prisloft","3. Driftsomkostninger","4. Historiske investeringer","5. Gennemførte investeringer","6. Korrektion investeringer","7. Planlagte investeringer","8. 1-1 omkostninger","9. Miljø- og servicemål","10. Klimatilpasning","11. Nettofinansielle poster","12. Over- eller underdækning","13. Kontrol med indtægtsrammen"],"not_rendered":{"charts":0,"images":0,"macros":1,"external_links":0,"defined_names":0,"comments":0,"pivot_tables":0},"unopened":[],"bounds":{"document_bytes":16777216,"sheet_cells":100000,"rows_first":2000,"rows_last":500,"rows_between":2000,"halvings":0,"cell_chars":16384,"cell_head_chars":4096},"cells_cut":0,"cells_raw":0,"read":"whole","date_system":"1900"}

{"sheet":"1. Forside","index":0,"n_rows":27,"n_cols":4,"rows_kept":27,"cut":false,"hidden":false,"merged":[[21,3,21,5],[20,3,20,5],[19,3,19,5],[18,3,18,5],[7,3,7,5],[12,3,12,5],[15,3,15,5],[16,3,16,5],[17,3,17,5],[26,3,26,5],[25,3,25,5],[24,3,24,5],[23,3,23,5],[22,3,22,5]]}
["Frederikssund Spildevand A/S"]
[]
[]
[]
[]
[]
[]
[null,null,null,"Bilag A"]
[]
[]
[]
[]
[null,null,null,"Indholdsfortegnelse"]
[]
[]
[null,null,"Fane nr. 2","Samlet prisloft "]
[null,null,"Fane nr. 3","Driftsomkostninger"]
[null,null,"Fane nr. 4","Historiske investeringer "]
[null,null,"Fane nr. 5","Gennemførte investeringer"]
[null,null,"Fane nr. 6","Korrektion investeringer"]
[null,null,"Fane nr. 7","Planlagte investeringer"]
[null,null,"Fane nr. 8","1:1 omkostninger"]
[null,null,"Fane nr. 9","Miljø- og servicemål"]
[null,null,"Fane nr. 10","Klimatilpasning"]
[null,null,"Fane nr. 11","Nettofinansielle poster"]
[null,null,"Fane nr. 12","Over- eller underdækning"]
[null,null,"Fane nr. 13","Kontrol med indtægtsrammen og oversigt over ekstraordinære effektiviseringsgevinster"]

{"sheet":"2. Samlet prisloft","index":1,"n_rows":38,"n_cols":6,"rows_kept":38,"cut":false,"hidden":false,"merged":[[3,1,3,5]]}
[{"$f":"'1. Forside'!A1","v":"Frederikssund Spildevand A/S"}]
[]
[]
[null,"Fane 2. Samlet prisloft for 2015"]
[]
[null,"Driftsomkostninger"]
[null,"Driftsomkostninger i prisloftet for 2014",{"$f":"'3. Driftsomkostninger'!C19","v":40716296.521846659},"kr."]
[null,"Bortfald af væsentlige omkostninger",{"$f":"-'3. Driftsomkostninger'!C24","v":0},"kr."]
[null,"Korrektion for prisudviklingen 2014-2015",{"$f":"'3. Driftsomkostninger'!C30","v":32573.037217477329},"kr."]
[null,"Forhøjelse til effektivt niveau iht. benchmarkingen",{"$f":"'3. Driftsomkostninger'!C36","v":0},"kr."]
[null,"Korrektion for generelt effektiviseringskrav",{"$f":"-'3. Driftsomkostninger'!C42","v":-154425.03936279198},"kr."]
[null,"Korrektion for individuelt effektiviseringskrav",{"$f":"-'3. Driftsomkostninger'!C51","v":-1467915.2889429033},"kr."]
[null,"Driftsomkostninger i alt",{"$f":"SUM(C7:C12)","v":39126529.230758436},"kr.",{"$f":"C13","v":39126529.230758436}," kr."]
[null,"Investeringer"]
[null,"Tillæg for historiske investeringer",{"$f":"'4. Historiske investeringer'!C9","v":35855871.070900939},"kr."]
[null,"Tillæg for gennemførte investeringer i 2011-2013",{"$f":"'5. Gennemførte investeringer'!F44","v":6110927.9833333325},"kr."]
[null,"Korrektion af tillæg for planlagte investeringer vedrørende 2013  ",{"$f":"'6. Korrektion investeringer'!C10","v":-1284511.5066666668},"kr."]
[null,"Tillæg for planlagte investeringer i 2014 og 2015",{"$f":"'7. Planlagte investeringer'!F54","v":1941166.6666666665},"kr."]
[null,"Investeringstillæg i alt",{"$f":"SUM(C15:C18)","v":42623454.21423427},"kr.",{"$f":"C19","v":42623454.21423427}," kr."]
[null,"Øvrige omkostninger mv."]
[null,"Tillæg for 1:1 omkostninger i 2015",{"$f":"'8. 1-1 omkostninger'!C10","v":3593000},"kr."]
[null,"Tillæg vedr. revisorerklæringer og DANVA/FVD-kontingent",{"$f":"'8. 1-1 omkostninger'!C18","v":167800},"kr."]
[null,"Korrektion ift. faktiske 1:1 omkostninger i 2013",{"$f":"'8. 1-1 omkostninger'!C24","v":161164},"kr."]
[null,"Tillæg for driftsomkostninger til miljø- og servicemål i 2015",{"$f":"'9. Miljø- og servicemål'!C9","v":113000},"kr."]
[null,"Korrektion ift. faktiske driftsomkostninger til miljø- og servicemål i 2013",{"$f":"'9. Miljø- og servicemål'!C16","v":0},"kr."]
[null,"Tillæg for driftsomkostninger til medfinansiering af klimatilpasningsprojekter i 2015",{"$f":"'10. Klimatilpasning'!C9","v":0},"kr."]
[null,"Korrektion ift. faktiske omkostninger til medfinansiering af klimatilpasningsprojekter i 2013",{"$f":"'10. Klimatilpasning'!C16","v":0},"kr."]
[null,"Tillæg/fradrag for nettofinansielle poster i 2015",{"$f":"'11. Nettofinansielle poster'!C9","v":1270000},"kr."]
[null,"Korrektion ift. faktiske nettofinansielle poster i 2013",{"$f":"'11. Nettofinansielle poster'!C16","v":-75431},"kr."]
[null,"Øvrige omkostninger mv. i alt",{"$f":"SUM(C21:C29)","v":5229533},"kr.",{"$f":"C30","v":5229533}," kr."]
[null,"Historisk over- eller underdækning"]
[null,"Tillæg/fradrag for over- eller underdækning til og med 2010",{"$f":"'12. Over- eller underdækning'!C11","v":0},"kr.",{"$f":"C32","v":0}," kr."]
[null,"Korrektion i forhold til tidligere indtægtsramme "]
[null,"Korrektion for overholdelse af indtægtsramme i prisloft 2013",{"$f":"'13. Kontrol med indtægtsrammen'!E27","v":385284.74337209761},"kr.",{"$f":"C34","v":385284.74337209761}," kr."]
[null,"Samlet prisloft"]
[null,"Indtægtsramme i 2015 ",null,null,{"$f":"SUM(E13:E34)","v":87364801.188364804}," kr."]
[null,"Debiteret vandmængde i 2013",null,null,1974774," m3"]
[null,"Prisloft 2015",null,null,{"$f":"E36/E37","v":44.240404820179322}," kr./m3"]

{"sheet":"3. Driftsomkostninger","index":2,"n_rows":51,"n_cols":4,"rows_kept":51,"cut":false,"hidden":false,"merged":[[3,1,3,3]]}
[{"$f":"'1. Forside'!A1","v":"Frederikssund Spildevand A/S"}]
[]
[]
[null,"Fane 3. Driftsomkostninger "]
[]
[null,"Driftsomkostningerne i prisloftet for 2014"]
[null,"Korrigerede driftsomkostninger i prisloftet for 2013 (DOiPL 2013) inkl. midlertidige tillæg",41767242.878666662,"kr."]
[null,"Prisfremskrivning 1,5 pct.",{"$f":"0.015*SUM(C7:C7)","v":626508.6431799999},"kr."]
[null,"Generelt effektiviseringskrav (0 pct.)",0,"kr."]
[null,"Individuelt effektiviseringskrav ",-1677455,"kr."]
[null,"Tillæg i henhold til § 8, stk. 2, pkt. 1",1391640,"kr."]
[null,"Driftsomkostningerne i prisloftet for 2014 (DOiPL 2014)",{"$f":"SUM(C7:C11)","v":42107936.521846659},"kr."]
[]
[]
[null,"Forskel i § 8, stk. 2, pkt. 1 - tillæg"]
[null,"Godkendt tillæg i PL2014 prisfremskrevet til 2014-niveau",1391640,"kr."]
[null,"Godkendt tillæg i PL2015 prisfremskrevet til 2014-niveau",0,"kr."]
[null,"Forskel",{"$f":"C17-C16","v":-1391640},"kr."]
[null,"Korrigerede driftsomkostnigner i prisloftet for 2014",{"$f":"C12+C18","v":40716296.521846659},"kr."]
[]
[]
[null,"Korrektion for forventet bortfald af væsentlige omkostninger"]
[null,"Selskabets indberettede bortfald af væsentlige omkostninger inden 2015",0,"kr."]
[null,"Korrektion for forventet bortfald ",{"$f":"SUM(C23:C23)","v":0},"kr."]
[]
[]
[null,"Korrektion for prisudviklingen fra 2014-2015"]
[null,"Driftsomkostningerne i prisloftet for 2014",{"$f":"C19-C24","v":40716296.521846659},"kr."]
[null,"Prisudvikling 2014 - 2015 ",0.08,"pct."]
[null,"Korrektion for prisudvikling",{"$f":"C28*(C29/100)","v":32573.037217477329},"kr."]
[]
[]
[null,"Eventuel forhøjelse til effektivt niveau iht. benchmarkingen"]
[null,"Selskabets effektive driftsomkostninger iht. benchmarkingen",24581658.538568072,"kr."]
[null,"Selskabets pristalskorrigerede driftsomkostninger i 2015-niveau",{"$f":"C28+C30","v":40748869.559064135},"kr."]
[null,"Eventuel forhøjelse til effektivt niveau",{"$f":"IF(C35>C34,0,C34-C35)","v":0},"kr."]
[]
[]
[null,"Korrektion for generelt effektiviseringskrav"]
[null,"Driftsomkostningerne i prisloftet for 2014 ekskl. midlertidige tillæg",35096599.855179995,"kr. "]
[null,"Generelt effektiviseringskrav ",0.44,"pct."]
[null,"Endeligt generelt effektiviseringskrav",{"$f":"C40*(C41/100)","v":154425.03936279198},"kr. "]
[]
[]
[null,"Korrektion for individuelt effektiviseringskrav"]
[null,"Rå effektiviseringspotentiale",10532489.616539516,"kr."]
[null,"Effektiviseringspotentiale efter eventuel korrektion for særlige forhold",10514941.316611925,"kr."]
[null,"Effektiviseringspotentiale efter forsigtighedshensyn",5871661.1557716131,"kr."]
[null,"Effektiviseringspotentiale efter eventuel korrektion for sammensætning af signifikante costdrivere",5871661.1557716131,"kr. "]
[null,"Umiddelbart effektiviseringskrav",{"$f":"C49/4","v":1467915.2889429033},"kr."]
[null,"Endeligt individuelt effektiviseringskrav",{"$f":"IF(C50>0.05*C40,0.05*C40,IF(C50<0.01*C40,0,C50))","v":1467915.2889429033},"kr. "]

{"sheet":"4. Historiske investeringer","index":3,"n_rows":9,"n_cols":4,"rows_kept":9,"cut":false,"hidden":false,"merged":[[3,1,3,2]]}
[{"$f":"'3. Driftsomkostninger'!A1","v":"Frederikssund Spildevand A/S"}]
[]
[]
[null,"Fane 4. Historiske investeringer "]
[]
[null,"Tillæg for historiske investeringer "]
[null,"Værdi af selskabets materielle anlægsaktiver pr. 1. januar 2010",1513062706.7582943,"kr."]
[null,"Den årlige standardafskrivning på de materielle anlægsaktiver iht. POLKA",35855871.070900939,"kr."]
[null,"Tillæg i alt i 2015",{"$f":"C8","v":35855871.070900939},"kr."]

{"sheet":"5. Gennemførte investeringer","index":4,"n_rows":44,"n_cols":7,"rows_kept":44,"cut":false,"hidden":false,"merged":[[3,1,3,5],[6,5,6,6]]}
[{"$f":"'4. Historiske investeringer'!A1","v":"Frederikssund Spildevand A/S"}]
[]
[]
[null,"Fane 5. Gennemførte investeringer i 2010 - 2013 "]
[]
[null,"Tillæg for gennemførte investeringer i 2013"]
[null," Beskrivelse af investeringen   ","Årstal ","Std. levetid (år)   "," Anskaffelses-pris (kr.)","Afskrivning "]
[null,"Indløb med riste, SRO",2013,10,83333,{"$f":"E8/D8","v":8333.2999999999993},"kr."]
[null,"Sand- og fedtfang, Kontruktioner",2013,60,138540,{"$f":"E9/D9","v":2309},"kr."]
[null,"Sand- og fedtfang, SRO",2013,10,75123,7512.3,"kr."]
[null,"Beluftningstanke, Mek/EL",2013,20,1174942,58747.1,"kr."]
[null,"Beluftningstanke, SRO",2013,10,555112,55511.199999999997,"kr."]
[null,"Slutafvanding, slam - højteknologisk (centrifuger), Mek/El",2013,20,179383,8969.15,"kr."]
[null,"Slutafvanding, slam - højteknologisk (centrifuger), SRO",2013,10,123478,12347.8,"kr."]
[null,"Slutdisponering, slam - lavteknologisk (slammineralisering), Mek/EL",2013,20,50375,2518.75,"kr."]
[null,"Ledningsnet = Ø 200 mm",2013,75,17978658,239715.44,"kr."]
[null,"Ø 200 mm < Ledningsnet = Ø 500 mm",2013,75,8950831,119344.41333333333,"kr."]
[null,"Ø 500 mm < Ledningsnet = Ø 800 mm",2013,75,1200000,16000,"kr."]
[null,"Ø 800 mm < Ledningsnet = Ø 1000 mm",2013,75,339277,4523.6933333333336,"kr."]
[null,"Ledningsnet > Ø 1600 mm (rørbassiner og transportledninger)",2013,75,325000,4333.333333333333,"kr."]
[null,"Strømpeforing = Ø 200 mm",2013,50,409515,8190.3,"kr."]
[null,"Strømpeforing Ø 200 mm < Ledningsnet = Ø 500 mm",2013,50,100000,2000,"kr."]
[null,"Strømpeforing Ø 500 mm < Ledningsnet = Ø 800 mm",2013,50,336909,6738.18,"kr."]
[null,"Brønde",2013,75,5199827,69331.026666666672,"kr."]
[null,"Stik",2013,75,2343304,31244.053333333333,"kr."]
[null,"Pumpestationer i brønde (< 6,25 m2), Konstruktioner",2013,50,3390348,67806.960000000006,"kr."]
[null,"Pumpestationer i brønde (< 6,25 m2), Mek/EL",2013,20,862972,43148.6,"kr."]
[null,"Pumpestationer i brønde (< 6,25 m2), SRO",2013,10,482507,48250.7,"kr."]
[null,"Pumpestationer m. overbygning (< 20 m2), Mek/EL",2013,20,276852,13842.6,"kr."]
[null,"Pumpestationer m. overbygning (< 20 m2), SRO",2013,10,56222,5622.2,"kr."]
[null,"Pumpeinstallation Miljøklasse A (100-300 l/s) - Mek/EL",2013,20,498000,24900,"kr."]
[null,"Pumpeinstallation Miljøklasse A (100-300 l/s) - SRO",2013,10,147892,14789.2,"kr."]
[null,"Pumpeinstallation Miljøklasse A (300-600 l/s) - SRO",2013,10,65370,6537,"kr."]
[null,"Jordbassin Klasse B",2013,50,7382835,147656.70000000001,"kr."]
[null,"Indløb-/udløbsarrangement",2013,75,76915,1025.5333333333333,"kr."]
[null,"Andre bygninger (tekniske installationer, målere mv.)",2013,75,1750067,23334.226666666666,"kr."]
[null,"Arbejdsplads",2013,5,32515,6503,"kr."]
[null,"Køretøjer, personbil",2013,5,350322,70064.399999999994,"kr."]
[null,"Værksteder, garager",2013,75,290491,{"$f":"E39/D39","v":3873.2133333333331},"kr."]
[null,"Asfaltvej",2013,75,1452178,{"$f":"E40/D40","v":19362.373333333333},"kr."]
[null,"Arbejdsplads",2013,5,1301360,260272,"kr."]
[null,"Tillæg for 2013 ",null,null,null,{"$f":"SUM(F8:F41)","v":1414657.7466666666},"kr."]
[null,"Tillæg for 2010 - 2012",null,null,null,4696270.2366666663,"kr."]
[null,"Samlet tillæg for gennemførte investeringer",null,null,null,{"$f":"F42+F43","v":6110927.9833333325},"kr."]

{"sheet":"6. Korrektion investeringer","index":5,"n_rows":10,"n_cols":4,"rows_kept":10,"cut":false,"hidden":false,"merged":[[3,1,3,3]]}
[{"$f":"'5. Gennemførte investeringer'!A1","v":"Frederikssund Spildevand A/S"}]
[]
[]
[null,"Fane 6. Korrektion af tillæg for planlagte investeringer"]
[]
[null,"Korrektion af tillæg for planlagte investeringer vedr. 2013"]
[null,"Tillæg for planlagte investeringer i 2013 i prisloft 2013",2000267,"kr."]
[null,"Tillæg for planlagte investeringer i 2013 i prisloft 2014",2113560,"kr."]
[null,"Selskabets faktiske afskrivninger på gennemførte investeringer i 2013",{"$f":"'5. Gennemførte investeringer'!F42","v":1414657.7466666666},"kr."]
[null,"Korrektion af tillæg for planlagte investeringer vedr. 2013",{"$f":"C9-C7+C9-C8","v":-1284511.5066666668},"kr."]

{"sheet":"7. Planlagte investeringer","index":6,"n_rows":54,"n_cols":7,"rows_kept":54,"cut":false,"hidden":false,"merged":[[6,5,6,6],[3,1,3,6]]}
[{"$f":"'6. Korrektion investeringer'!A1","v":"Frederikssund Spildevand A/S"}]
[]
[]
[null,"Fane 7. Planlagte investeringer "]
[]
[null,"Tillæg for planlagte investeringer i 2014 og 2015"]
[null,"Beskrivelse af investeringen   ","Årstal ","Std. levetid (år)   ","Anskaffelses-pris (kr.)   ","Afskrivning"]
[null,"Indløb med riste, Mek/EL",2014,20,500000,{"$f":"E8/D8","v":25000},"kr."]
[null,"Indløb med riste, Konstruktioner",2014,60,7000000,{"$f":"E9/D9","v":116666.66666666667},"kr."]
[null,"Indløb med riste, SRO",2014,10,50000,{"$f":"E10/D10","v":5000},"kr."]
[null,"Sand- og fedtfang, Kontruktioner",2014,60,5000000,{"$f":"E11/D11","v":83333.333333333328},"kr."]
[null,"Sand- og fedtfang, SRO",2014,10,50000,5000,"kr."]
[null,"Sand- og fedtfang, Mek/EL",2014,20,500000,25000,"kr."]
[null,"Ledningsnet = Ø 200 mm",2014,75,20000000,266666.66666666669,"kr."]
[null,"Ø 200 mm < Ledningsnet = Ø 500 mm",2014,75,10000000,133333.33333333334,"kr."]
[null,"Ø 500 mm < Ledningsnet = Ø 800 mm",2014,75,1200000,16000,"kr."]
[null,"Ø 800 mm < Ledningsnet = Ø 1000 mm",2014,75,350000,4666.666666666667,"kr."]
[null,"Strømpeforing = Ø 200 mm",2014,50,400000,8000,"kr."]
[null,"Strømpeforing Ø 200 mm < Ledningsnet = Ø 500 mm",2014,50,100000,2000,"kr."]
[null,"Strømpeforing Ø 500 mm < Ledningsnet = Ø 800 mm",2014,50,350000,7000,"kr."]
[null,"Brønde",2014,75,6000000,80000,"kr."]
[null,"Stik",2014,75,2500000,33333.333333333336,"kr."]
[null,"Tryksatte minipumpestationer (husstandssystemer)",2014,30,500000,16666.666666666668,"kr."]
[null,"Pumpestationer i brønde (< 6,25 m2), Konstruktioner",2014,50,3500000,70000,"kr."]
[null,"Pumpestationer i brønde (< 6,25 m2), Mek/EL",2014,20,1000000,50000,"kr."]
[null,"Pumpestationer m. overbygning (< 20 m2), Mek/EL",2014,20,300000,15000,"kr."]
[null,"Pumpestationer m. overbygning (< 20 m2), SRO",2014,10,50000,5000,"kr."]
[null,"Pumpeinstallation Miljøklasse A (100-300 l/s) - Mek/EL",2014,20,500000,25000,"kr."]
[null,"Pumpeinstallation Miljøklasse A (100-300 l/s) - SRO",2014,10,150000,15000,"kr."]
[null,"Køretøjer, personbil",2014,5,350000,70000,"kr."]
[null,"Beluftningstanke, Konstruktioner",2015,60,10000000,166666.66666666666,"kr."]
[null,"Beluftningstanke, Mek/EL",2015,20,1000000,50000,"kr."]
[null,"Beluftningstanke, SRO",2015,10,100000,10000,"kr."]
[null,"Ledningsnet = Ø 200 mm",2015,75,15000000,200000,"kr."]
[null,"Ø 200 mm < Ledningsnet = Ø 500 mm",2015,75,7000000,93333.333333333328,"kr."]
[null,"Ø 500 mm < Ledningsnet = Ø 800 mm",2015,75,500000,6666.666666666667,"kr."]
[null,"Ø 800 mm < Ledningsnet = Ø 1000 mm",2015,75,200000,2666.6666666666665,"kr."]
[null,"Strømpeforing = Ø 200 mm",2015,50,200000,4000,"kr."]
[null,"Ø 200 mm < Ledningsnet = Ø 500 mm",2015,75,50000,666.66666666666663,"kr."]
[null,"Ø 500 mm < Ledningsnet = Ø 800 mm",2015,75,150000,2000,"kr."]
[null,"Brønde",2015,75,3000000,40000,"kr."]
[null,"Tryksatte minipumpestationer (husstandssystemer)",2015,30,200000,6666.666666666667,"kr."]
[null,"Stik",2015,75,1000000,13333.333333333334,"kr."]
[null,"Pumpestationer i brønde (< 6,25 m2), Konstruktioner",2015,50,2000000,40000,"kr."]
[null,"Pumpestationer i brønde (< 6,25 m2), Mek/EL",2015,20,500000,25000,"kr."]
[null,"Pumpestationer m. overbygning (< 20 m2), Mek/EL",2015,20,150000,7500,"kr."]
[null,"Pumpestationer m. overbygning (< 20 m2), SRO",2015,10,25000,2500,"kr."]
[null,"Pumpeinstallation Miljøklasse A (100-300 l/s) - Mek/EL",2015,20,250000,12500,"kr."]
[null,"Pumpeinstallation Miljøklasse A (100-300 l/s) - SRO",2015,10,100000,10000,"kr."]
[null,"Jordbassin Klasse B",2015,50,5000000,100000,"kr."]
[null,"Køretøjer, personbil",2015,5,350000,70000,"kr."]
[null,"Tillæg for 2014",null,null,null,{"$f":"SUMIF(C8:C51,\"2014\",F8:F51)","v":1077666.6666666667},"kr."]
[null,"Tillæg for 2015",null,null,null,{"$f":"SUMIF(C8:C51,\"2015\",F8:F51)","v":863499.99999999988},"kr."]
[null,"Tillæg i alt",null,null,null,{"$f":"F52+F53","v":1941166.6666666665},"kr."]

{"sheet":"8. 1-1 omkostninger","index":7,"n_rows":24,"n_cols":4,"rows_kept":24,"cut":false,"hidden":false,"merged":[[3,1,3,3],[14,1,14,3],[20,1,20,3]]}
[{"$f":"'7. Planlagte investeringer'!A1","v":"Frederikssund Spildevand A/S"}]
[]
[]
[null,"Fane 8. 1:1 omkostninger"]
[]
[null,"Tillæg for budgetterede 1:1 omkostninger i 2015"]
[null,"Betaling til Forsyningssekretariatet",33000,"kr."]
[null,"Spildevandsafgift",560000,"kr."]
[null,"Selskabskat",3000000,"kr."]
[null,"Tillæg i alt ",{"$f":"SUM(C7:C9)","v":3593000},"kr."]
[]
[]
[]
[]
[null,"Tillæg for budgetterede nødvendige udgifter til revisorerklæringer samt ordinært medlemskab af DANVA og FVD i 2015"]
[null,"Betaling for ordinært medlemskab af DANVA/FVD",112800,"kr."]
[null,"Betaling for revisorerklæringer",55000,"kr."]
[null,"Tillæg i alt ",{"$f":"SUM(C16:C17)","v":167800},"kr."]
[]
[]
[null,"Korrektion af tillæg for faktiske 1:1 omkostninger (inkl. revisorerklæringer og ordinært medlemskab af DANVA/FVD) i 2013"]
[null,"Selskabets faktiske 1:1 omkostninger mv. i 2013, jf. reguleringsregnskabet",797164,"kr."]
[null,"Tillæg for budgetterede 1:1 omkostninger mv. i prisloft 2013",636000,"kr."]
[null,"Korrektion af tillæg for budgetterede 1:1 omkostninger mv. i 2013",{"$f":"C22-C23","v":161164},"kr."]

{"sheet":"9. Miljø- og servicemål","index":8,"n_rows":16,"n_cols":4,"rows_kept":16,"cut":false,"hidden":false,"merged":[[3,1,3,3]]}
[{"$f":"'8. 1-1 omkostninger'!A1","v":"Frederikssund Spildevand A/S"}]
[]
[]
[null,"Fane 9. Driftsomkostninger til miljø- og servicemål "]
[]
[null,"Tillæg for budgetterede driftsomkostninger til miljø- og servicemål i 2015"]
[null,"Bekæmpelse af lugtgener",113000,"kr."]
[null,"Projekt Symbiose",0,"kr."]
[null,"Tillæg i alt",{"$f":"SUM(C7:C8)","v":113000},"kr."]
[]
[]
[]
[null,"Korrektion af tillæg for faktiske driftsomkostninger til miljø- og servicemål i 2013"]
[null,"Selskabets faktiske driftsomkostninger til miljø- og servicemål i 2013, jf. reguleringsregnskabet",0,"kr."]
[null,"Tillæg for budgetterede driftsomkostninger til miljø- og servicemål i prisloft 2013",0,"kr."]
[null,"Korrektion af tillæg for budgetterede driftsomkostninger til miljø- og servicemål i 2013",{"$f":"C14-C15","v":0},"kr."]

{"sheet":"10. Klimatilpasning","index":9,"n_rows":16,"n_cols":4,"rows_kept":16,"cut":false,"hidden":false,"merged":[[3,1,3,3],[12,1,12,3],[6,1,6,3]]}
[{"$f":"'9. Miljø- og servicemål'!A1","v":"Frederikssund Spildevand A/S"}]
[]
[]
[null,"Fane 10. Medfinansiering af klimatilpasningsprojekter"]
[]
[]
[null,"Tillæg for budgetterede omkostninger til medfinansiering af klimatilpasningsprojekter i 2015"]
[null,null,0,"kr."]
[null,"Tillæg i alt",{"$f":" SUM(C8:C8)","v":0},"kr."]
[]
[]
[]
[null,"Korrektion af tillæg for faktiske omkostninger til medfinansiering af klimatilpasningsprojekter i 2013"]
[null,"Selskabets faktiske driftsomkostninger til klimatilpasningsprojekter i 2013, jf. reguleringsregnskabet",0,"kr."]
[null,"Tillæg for budgetterede driftsomkostninger til klimatilpasningsprojekter i prisloft 2013",0,"kr."]
[null,"Korrektion af tillæg for budgetterede omkostninger til klimatilpasningsprojekter i 2013",{"$f":"C14-C15","v":0},"kr."]

{"sheet":"11. Nettofinansielle poster","index":10,"n_rows":16,"n_cols":4,"rows_kept":16,"cut":false,"hidden":false,"merged":[[3,1,3,3]]}
[{"$f":"'10. Klimatilpasning'!A1","v":"Frederikssund Spildevand A/S"}]
[]
[]
[null,"Fane 11. Nettofinansielle poster"]
[]
[null,"Tillæg for budgetterede nettofinansielle poster i 2015"]
[null,"Budgetterede renteudgifter og gebyrer i 2015",1300000,"kr."]
[null,"Budgetterede renteindtægter i 2015",30000,"kr."]
[null,"Tillæg/fradrag i alt",{"$f":"C7-C8","v":1270000},"kr."]
[]
[]
[]
[null,"Korrektion af tillæg for faktiske nettofinansielle poster i 2013"]
[null,"Selskabets faktiske nettofinansielle poster i 2013, jf. reguleringsregnskabet",424569,"kr."]
[null,"Tillæg for budgetterede nettofinansielle poster i prisloft 2013",500000,"kr."]
[null,"Korrektion af tillæg for budgetterede nettofinansielle poster i 2013",{"$f":"C14-C15","v":-75431},"kr."]

{"sheet":"12. Over- eller underdækning","index":11,"n_rows":11,"n_cols":4,"rows_kept":11,"cut":false,"hidden":true,"merged":[[3,1,3,3]]}
[{"$f":"'11. Nettofinansielle poster'!A1","v":"Frederikssund Spildevand A/S"}]
[]
[]
[null,"Fane 12. Over- eller underdækning til og med 2010"]
[]
[null,"Tillæg/fradrag for over- eller underdækning til og med 2010"]
[null,"Opgjort over- eller underdækning per 31. december 2010",0,"kr."]
[null,"Heraf beløb indregnet i prislofterne for 2012 - 2014",0,"kr."]
[null,"Endnu ikke indregnet over- eller underdækning",{"$f":"C7-C8","v":0},"kr."]
[null,"Resterende indregningsperiode (fastsat i prisloftet for 2012)",0,"år"]
[null,"Tillæg/fradrag i alt",{"$f":"IF(C7=0,0,C9/C10)","v":0},"kr."]

{"sheet":"13. Kontrol med indtægtsrammen","index":12,"n_rows":38,"n_cols":12,"rows_kept":38,"cut":false,"hidden":false,"merged":[[3,1,3,5],[30,1,30,4],[5,1,5,5]]}
[{"$f":"'12. Over- eller underdækning'!A1","v":"Frederikssund Spildevand A/S"}]
[]
[]
[null,"Fane 13. Korrektion for overholdelse af indtægtsrammen i prisloftet for 2013"]
[]
[null,"Samlet opgørelse vedrørende overholdelse af indtægtsrammen i prisloftet for 2013"]
[null,"Indtægtsramme i prisloftet for 2013",null,null,81166811.991679803,"kr."]
[null,"Ikke anvendt likviditet vedrørende investeringer i 2013"]
[null,"Tillæg for historiske investeringer ",35915972.248307705,"kr."]
[null,"Tillæg for gennemførte investeringer i 2011",2822827,"kr."]
[null,"Korrektion af tillæg for planlagte investeringer i 2011",923374,"kr."]
[null,"Tillæg for planlagte investeringer i 2012 og 2013",3666990,"kr."]
[null,"Indtægter fra tilslutningsbidrag",758091,"kr."]
[null,"Indtægter fra salg af anlægsaktiver",7000,"kr."]
[null,"Erstatninger vedr. anlægsaktiver mv.",0,"kr."]
[null,"Ekstraordinær effektiviseringsgevinst anvendt til investeringer",6620990,"kr."]
[null,"Udgifter til investeringer",-50715244,"kr."]
[null,"Ikke anvendt likviditet vedr. investeringer i alt",{"$f":"SUM(C9:C17)","v":0.24830770492553711},"kr.",{"$f":"IF(C18<0,0,-C18)","v":-0.24830770492553711},"kr."]
[null,"Ekstraordinære effektiviseringsgevinster anvendt til takstnedsættelse"]
[null,"Ekstraordinær effektiviseringsgevinst anvendt til takstnedsættelse",0,"kr.",{"$f":"-C20","v":0},"kr."]
[null,"Korrektion af ikke opkrævet tillæg fra 2011 i prisloft 2013"]
[null,"Korrektion af ikke opkrævet tillæg fra 2011 i prisloft 2013",0,"kr.",{"$f":"-C22","v":0},"kr."]
[null,"Indtægter fra primære aktiviteter mv."]
[null,"Indtægter fra kubikmetertakster, faste takster, særbidrag, målergebyrer samt andre takster og gebyrer",80781527,"kr."]
[null,"Andre indtægter i prisloftåret, som selskabet har opnået i forbindelse med eller som følge af selskabets primære aktiviteter",0,"kr."]
[null,"Indtægter fra primære aktiviteter mv. i alt",{"$f":"SUM(C24:C25)","v":80781527},"kr.",{"$f":"-C26","v":-80781527},"kr."]
[null,"Tillæg/fradrag i prisloftet for 2015 i alt",null,null,{"$f":"E7+E18+E20+E22+E26","v":385284.74337209761},"kr."]
[]
[]
[]
[null,"Oversigt over ekstraordinære effektiviseringsgevinster"]
[]
[null,null,2012,null,2013,null,2014,null,2015,null,2016]
[null,"Indhentet ekstraordinær effektiviseringsgevinst",0,"kr.",6620990,"kr.",null,"kr.",null,"kr.",null,"kr."]
[null,"Gevinst anvendt til investeringer",0,"kr.",6620990,"kr.",null,"kr.",null,"kr.",null,"kr."]
[null,"Gevinst anvendt til takstnedsættelse",0,"kr.",0,"kr.",null,"kr.",null,"kr.",null,"kr."]
[null,"Korrektion for  effektiviseringsgevinst der ikke er anvendt inden 4 år",0,"kr.",0,"kr.",null,"kr.",null,"kr.",{"$f":"IF(C38>SUM(C35:I36),C38-SUM(E35:I36),0)*-1","v":0},"kr."]
[null,"Resterende gevinst",{"$f":"C34-C35-C36","v":0},"kr.",{"$f":"C38+E34-E35-E36","v":0},"kr.",{"$f":"E38+G34-G35-G36","v":0},"kr.",{"$f":"G38+I34-I35-I36","v":0},"kr.",{"$f":"I38-K34-K35-K36+K37","v":0},"kr."]